[Event "*** SCC Grand Prix: Titled Tuesday Blitz"]
[Site "Chess.com"]
[Date "2020.07.21"]
[Round "1"]
[White "deep306"]
[Black "MisiekZielony"]
[Result "1/2-1/2"]
[WhiteElo "2575"]
[BlackElo "2239"]
[TimeControl "180+1"]
[EndTime "10:07:55 PDT"]
[Termination "Game drawn - insufficient material"]

1. d4 {[%clk 0:03:00.9]} 1... d5 {[%clk 0:02:59.5]} 2. c4 {[%clk 0:02:59.7]}
2... c6 {[%clk 0:02:58.4]} 3. Nf3 {[%clk 0:02:58.7]} 3... Nf6 {[%clk 0:02:58.1]}
4. e3 {[%clk 0:02:57.2]} 4... g6 {[%clk 0:02:57.1]} 5. Nc3 {[%clk 0:02:56.7]}
5... Bg7 {[%clk 0:02:57]} 6. Be2 {[%clk 0:02:57.1]} 6... O-O {[%clk 0:02:56.9]}
7. O-O {[%clk 0:02:57.8]} 7... Bg4 {[%clk 0:02:55.9]} 8. b3 {[%clk 0:02:56.1]}
8... Nbd7 {[%clk 0:02:52.9]} 9. Bb2 {[%clk 0:02:55.8]} 9... e6 {[%clk
0:02:50.9]} 10. h3 {[%clk 0:02:55.6]} 10... Bxf3 {[%clk 0:02:50.7]} 11. Bxf3
{[%clk 0:02:56.1]} 11... Re8 {[%clk 0:02:50.8]} 12. e4 {[%clk 0:02:55.3]} 12...
dxe4 {[%clk 0:02:50.2]} 13. Nxe4 {[%clk 0:02:55.1]} 13... Nxe4 {[%clk
0:02:46.6]} 14. Bxe4 {[%clk 0:02:55]} 14... e5 {[%clk 0:02:46.3]} 15. d5 {[%clk
0:02:50.2]} 15... Nf6 {[%clk 0:02:46]} 16. Bf3 {[%clk 0:02:19.7]} 16... e4
{[%clk 0:02:36.5]} 17. Be2 {[%clk 0:02:08.2]} 17... cxd5 {[%clk 0:02:36.3]} 18.
cxd5 {[%clk 0:02:07.6]} 18... Nxd5 {[%clk 0:02:18.9]} 19. Bxg7 {[%clk
0:01:58.4]} 19... Kxg7 {[%clk 0:02:18.6]} 20. Qd4+ {[%clk 0:01:57.2]} 20... Nf6
{[%clk 0:02:17.9]} 21. Qb4 {[%clk 0:01:56]} 21... Qe7 {[%clk 0:02:17.3]} 22. Qa5
{[%clk 0:01:46.7]} 22... b6 {[%clk 0:02:15.7]} 23. Qa6 {[%clk 0:01:44.7]} 23...
Rad8 {[%clk 0:02:05.6]} 24. Rac1 {[%clk 0:01:44.1]} 24... e3 {[%clk 0:02:03.9]}
25. f4 {[%clk 0:01:42.7]} 25... Rd2 {[%clk 0:02:03.2]} 26. f5 {[%clk 0:01:28.4]}
26... Red8 {[%clk 0:01:41.5]} 27. Kh1 {[%clk 0:01:21.2]} 27... Ne4 {[%clk
0:01:39.6]} 28. Kg1 {[%clk 0:01:04.9]} 28... Nf2 {[%clk 0:01:31.3]} 29. Rc8
{[%clk 0:00:49.7]} 29... R8d4 {[%clk 0:01:26.3]} 30. Rc6 {[%clk 0:00:44.9]}
30... Rd6 {[%clk 0:00:58.2]} 31. Rxd6 {[%clk 0:00:36.1]} 31... Qxd6 {[%clk
0:00:57.9]} 32. Qc4 {[%clk 0:00:30.2]} 32... Qd4 {[%clk 0:00:54.9]} 33. Qxd4+
{[%clk 0:00:20.4]} 33... Rxd4 {[%clk 0:00:53.6]} 34. fxg6 {[%clk 0:00:19.8]}
34... hxg6 {[%clk 0:00:53.2]} 35. Re1 {[%clk 0:00:20.5]} 35... f5 {[%clk
0:00:50.6]} 36. h4 {[%clk 0:00:20.2]} 36... f4 {[%clk 0:00:50.8]} 37. g3 {[%clk
0:00:20.4]} 37... fxg3 {[%clk 0:00:48.3]} 38. Kg2 {[%clk 0:00:20.8]} 38... Ne4
{[%clk 0:00:47.2]} 39. Bf3 {[%clk 0:00:20.1]} 39... Rd2+ {[%clk 0:00:45.4]} 40.
Kh3 {[%clk 0:00:20.1]} 40... Nf2+ {[%clk 0:00:43]} 41. Kxg3 {[%clk 0:00:20.5]}
41... Rd3 {[%clk 0:00:43.1]} 42. Be2 {[%clk 0:00:19.7]} 42... Rc3 {[%clk
0:00:42.2]} 43. Bc4 {[%clk 0:00:19.9]} 43... Ne4+ {[%clk 0:00:38.3]} 44. Kf4
{[%clk 0:00:20.4]} 44... Nd2 {[%clk 0:00:38.5]} 45. Rxe3 {[%clk 0:00:21]} 45...
Rxe3 {[%clk 0:00:37]} 46. Kxe3 {[%clk 0:00:21.6]} 46... Nxc4+ {[%clk 0:00:36]}
47. bxc4 {[%clk 0:00:22.3]} 47... Kf6 {[%clk 0:00:36.5]} 48. Kd4 {[%clk
0:00:22.9]} 48... Ke6 {[%clk 0:00:36.5]} 49. a4 {[%clk 0:00:23.3]} 49... a5
{[%clk 0:00:35.1]} 50. c5 {[%clk 0:00:23.1]} 50... bxc5+ {[%clk 0:00:21.5]} 51.
Kxc5 {[%clk 0:00:23.7]} 51... Kf5 {[%clk 0:00:22.1]} 52. Kb5 {[%clk 0:00:24.3]}
52... Kg4 {[%clk 0:00:22.6]} 53. Kxa5 {[%clk 0:00:24.9]} 53... Kxh4 {[%clk
0:00:23]} 54. Kb5 {[%clk 0:00:25.5]} 54... g5 {[%clk 0:00:23.2]} 55. a5 {[%clk
0:00:26.2]} 55... g4 {[%clk 0:00:23.7]} 56. a6 {[%clk 0:00:26.8]} 56... g3
{[%clk 0:00:24.3]} 57. a7 {[%clk 0:00:27.5]} 57... g2 {[%clk 0:00:24.7]} 58.
a8=Q {[%clk 0:00:27.7]} 58... g1=Q {[%clk 0:00:24.9]} 59. Qh8+ {[%clk
0:00:27.7]} 59... Kg3 {[%clk 0:00:24.4]} 60. Qg7+ {[%clk 0:00:28.3]} 60... Kf2
{[%clk 0:00:24.6]} 61. Qxg1+ {[%clk 0:00:28.3]} 61... Kxg1 {[%clk 0:00:24.7]}
1/2-1/2

[Event "*** SCC Grand Prix: Titled Tuesday Blitz"]
[Site "Chess.com"]
[Date "2020.07.21"]
[Round "1"]
[White "MVM2008"]
[Black "Isajevsky_Anton"]
[Result "0-1"]
[WhiteElo "2157"]
[BlackElo "2555"]
[TimeControl "180+1"]
[EndTime "10:07:55 PDT"]
[Termination "Isajevsky_Anton won by checkmate"]

1. e4 {[%clk 0:03:00.9]} 1... c5 {[%clk 0:02:59.6]} 2. Nf3 {[%clk 0:02:55.1]}
2... d6 {[%clk 0:02:58.9]} 3. d4 {[%clk 0:02:55]} 3... cxd4 {[%clk 0:02:59.2]}
4. Nxd4 {[%clk 0:02:55.3]} 4... Nf6 {[%clk 0:02:59.7]} 5. Nc3 {[%clk 0:02:55.7]}
5... a6 {[%clk 0:02:59.5]} 6. Bg5 {[%clk 0:02:55.7]} 6... Nbd7 {[%clk
0:02:58.7]} 7. Qd2 {[%clk 0:02:53.2]} 7... b5 {[%clk 0:02:54.9]} 8. O-O-O {[%clk
0:02:07.9]} 8... Bb7 {[%clk 0:02:53.2]} 9. f3 {[%clk 0:02:05.2]} 9... e6 {[%clk
0:02:51.1]} 10. g4 {[%clk 0:02:03.6]} 10... Be7 {[%clk 0:02:49]} 11. h4 {[%clk
0:02:02]} 11... Qc7 {[%clk 0:02:17.8]} 12. Be3 {[%clk 0:01:48]} 12... Nc5 {[%clk
0:02:02.2]} 13. g5 {[%clk 0:01:43.2]} 13... Nfd7 {[%clk 0:02:01.8]} 14. h5
{[%clk 0:01:22.6]} 14... b4 {[%clk 0:02:00.9]} 15. Nce2 {[%clk 0:01:13.7]} 15...
Ne5 {[%clk 0:01:59.8]} 16. Nf4 {[%clk 0:00:59.3]} 16... Bxg5 {[%clk 0:01:45]}
17. Rg1 {[%clk 0:00:52.5]} 17... Bf6 {[%clk 0:01:40.3]} 18. Qxb4 {[%clk
0:00:35.9]} 18... h6 {[%clk 0:00:34.6]} 19. Bb5+ {[%clk 0:00:28.4]} 19... Ke7
{[%clk 0:00:30.8]} 20. Nf5+ {[%clk 0:00:20.6]} 20... exf5 {[%clk 0:00:30]} 21.
Rxd6 {[%clk 0:00:18.3]} 21... Rhc8 {[%clk 0:00:13.3]} 22. Rgd1 {[%clk
0:00:15.1]} 22... axb5 {[%clk 0:00:11.8]} 23. c3 {[%clk 0:00:09.8]} 23... Rxa2
{[%clk 0:00:10.6]} 24. Qxb5 {[%clk 0:00:09.8]} 24... Ra1+ {[%clk 0:00:08.6]} 25.
Kc2 {[%clk 0:00:09.7]} 25... Rxd1 {[%clk 0:00:09.2]} 26. Rxd1 {[%clk 0:00:10.4]}
26... fxe4 {[%clk 0:00:09]} 27. b4 {[%clk 0:00:07.8]} 27... Ncd3 {[%clk
0:00:06.7]} 28. Bd4 {[%clk 0:00:03.8]} 28... Nxf4 {[%clk 0:00:04.7]} 29. Kb2
{[%clk 0:00:02]} 29... Ne6 {[%clk 0:00:04.4]} 30. f4 {[%clk 0:00:01.8]} 30...
Nxd4 {[%clk 0:00:04.4]} 31. cxd4 {[%clk 0:00:01.9]} 31... Qc2+ {[%clk
0:00:04.4]} 32. Ka3 {[%clk 0:00:02.3]} 32... Ra8+ {[%clk 0:00:04.4]} 33. Qa5
{[%clk 0:00:02.2]} 33... Rxa5+ {[%clk 0:00:04.5]} 34. bxa5 {[%clk 0:00:03.1]}
34... Nc4+ {[%clk 0:00:05]} 35. Kb4 {[%clk 0:00:03.6]} 35... Qxd1 {[%clk
0:00:05.5]} 36. Kxc4 {[%clk 0:00:03.6]} 36... Qxd4+ {[%clk 0:00:06.3]} 37. Kb3
{[%clk 0:00:03.6]} 37... Qd5+ {[%clk 0:00:06.7]} 38. Kc2 {[%clk 0:00:03.5]}
38... Qc4+ {[%clk 0:00:07]} 39. Kd2 {[%clk 0:00:03.6]} 39... Bc3+ {[%clk
0:00:07]} 40. Ke3 {[%clk 0:00:03.8]} 40... Qd3+ {[%clk 0:00:07.4]} 41. Kf2
{[%clk 0:00:04]} 41... Bd4+ {[%clk 0:00:07.8]} 42. Kg2 {[%clk 0:00:03.7]} 42...
e3+ {[%clk 0:00:08.1]} 43. Kh3 {[%clk 0:00:04]} 43... e2+ {[%clk 0:00:08.4]} 44.
Kg4 {[%clk 0:00:04.4]} 44... e1=Q {[%clk 0:00:08.6]} 45. f5 {[%clk 0:00:03.7]}
45... Qeg3# {[%clk 0:00:08.6]} 0-1

[Event "*** SCC Grand Prix: Titled Tuesday Blitz"]
[Site "Chess.com"]
[Date "2020.07.21"]
[Round "1"]
[White "albano87"]
[Black "Antipov_Mikhail_Al"]
[Result "0-1"]
[WhiteElo "2418"]
[BlackElo "2841"]
[TimeControl "180+1"]
[EndTime "10:07:56 PDT"]
[Termination "Antipov_Mikhail_Al won on time"]

1. e4 {[%clk 0:01:58.1]} 1... e5 {[%clk 0:02:57.8]} 2. Nf3 {[%clk 0:01:33.9]}
2... Nc6 {[%clk 0:02:54]} 3. Nc3 {[%clk 0:01:33.4]} 3... Nf6 {[%clk 0:02:16.2]}
4. Bb5 {[%clk 0:01:32.9]} 4... Nd4 {[%clk 0:02:16]} 5. Nxd4 {[%clk 0:01:32.1]}
5... exd4 {[%clk 0:02:16.1]} 6. e5 {[%clk 0:01:32.7]} 6... dxc3 {[%clk
0:02:15.9]} 7. exf6 {[%clk 0:01:32.4]} 7... Qxf6 {[%clk 0:02:16.8]} 8. dxc3
{[%clk 0:01:32.2]} 8... Bc5 {[%clk 0:02:15.6]} 9. Qe2+ {[%clk 0:01:31]} 9... Qe6
{[%clk 0:02:04.8]} 10. Bc4 {[%clk 0:01:25.1]} 10... Qxe2+ {[%clk 0:02:02.4]} 11.
Bxe2 {[%clk 0:01:23.8]} 11... d6 {[%clk 0:02:01.3]} 12. O-O {[%clk 0:01:03.3]}
12... a5 {[%clk 0:01:36.4]} 13. Bf3 {[%clk 0:01:03.3]} 13... c6 {[%clk
0:01:35.1]} 14. Bg5 {[%clk 0:01:02.3]} 14... f6 {[%clk 0:01:28.4]} 15. Rfe1+
{[%clk 0:01:00.8]} 15... Kf7 {[%clk 0:01:27.4]} 16. Bf4 {[%clk 0:01:01.5]} 16...
d5 {[%clk 0:01:19.8]} 17. Rad1 {[%clk 0:00:56.4]} 17... Bf5 {[%clk 0:01:14.8]}
18. Re2 {[%clk 0:00:40.9]} 18... a4 {[%clk 0:00:53.3]} 19. g4 {[%clk 0:00:38.5]}
19... Bg6 {[%clk 0:00:53]} 20. b3 {[%clk 0:00:31.1]} 20... Rhe8 {[%clk
0:00:35.7]} 21. Rde1 {[%clk 0:00:20.5]} 21... Bxc2 {[%clk 0:00:12.5]} 22. Rxe8
{[%clk 0:00:15.1]} 22... Rxe8 {[%clk 0:00:13.4]} 23. Rxe8 {[%clk 0:00:14.2]}
23... Kxe8 {[%clk 0:00:14.3]} 24. b4 {[%clk 0:00:12.8]} 24... Be7 {[%clk
0:00:14.2]} 25. Be3 {[%clk 0:00:10.9]} 25... a3 {[%clk 0:00:13.6]} 26. Bc1
{[%clk 0:00:10.3]} 26... Bb1 {[%clk 0:00:13.8]} 27. Bxa3 {[%clk 0:00:10.7]}
27... Bxa2 {[%clk 0:00:14.4]} 28. Kf1 {[%clk 0:00:09.4]} 28... g5 {[%clk
0:00:14.5]} 29. Ke1 {[%clk 0:00:08.1]} 29... Bd6 {[%clk 0:00:14.3]} 30. h3
{[%clk 0:00:07.4]} 30... Bb1 {[%clk 0:00:14.3]} 31. Bc1 {[%clk 0:00:04.6]} 31...
Kd7 {[%clk 0:00:14.4]} 32. Be3 {[%clk 0:00:05]} 32... Be5 {[%clk 0:00:13]} 33.
Kd2 {[%clk 0:00:05.3]} 33... h6 {[%clk 0:00:12]} 34. Be2 {[%clk 0:00:04.9]}
34... Bg6 {[%clk 0:00:11.3]} 35. f3 {[%clk 0:00:05.5]} 35... Ke6 {[%clk
0:00:10.8]} 36. c4 {[%clk 0:00:05.9]} 36... f5 {[%clk 0:00:09.6]} 37. Bc5 {[%clk
0:00:05.1]} 37... f4 {[%clk 0:00:04.9]} 38. Bb6 {[%clk 0:00:01.8]} 38... Bf6
{[%clk 0:00:04.2]} 39. Bc5 {[%clk 0:00:01.8]} 39... h5 {[%clk 0:00:04.3]} 40.
Bf8 {[%clk 0:00:01.4]} 40... h4 {[%clk 0:00:04.6]} 41. b5 {[%clk 0:00:01.2]}
41... Be8 {[%clk 0:00:02.7]} 0-1

[Event "*** SCC Grand Prix: Titled Tuesday Blitz"]
[Site "Chess.com"]
[Date "2020.07.21"]
[Round "1"]
[White "Schack-Hugo"]
[Black "djogrodek1"]
[Result "1/2-1/2"]
[WhiteElo "2163"]
[BlackElo "2541"]
[TimeControl "180+1"]
[EndTime "10:07:57 PDT"]
[Termination "Game drawn - insufficient material"]

1. c3 {[%clk 0:02:58.6]} 1... d5 {[%clk 0:02:42]} 2. d4 {[%clk 0:02:59.5]} 2...
Nf6 {[%clk 0:02:28.8]} 3. Nf3 {[%clk 0:02:57.7]} 3... Bf5 {[%clk 0:02:26.6]} 4.
g3 {[%clk 0:02:56.8]} 4... e6 {[%clk 0:02:26.9]} 5. Bg2 {[%clk 0:02:56.2]} 5...
Be7 {[%clk 0:02:20.3]} 6. O-O {[%clk 0:02:48.7]} 6... Nbd7 {[%clk 0:02:20.1]} 7.
Bg5 {[%clk 0:02:39.4]} 7... c6 {[%clk 0:02:19.9]} 8. Nbd2 {[%clk 0:02:36.8]}
8... h6 {[%clk 0:02:20.1]} 9. Bxf6 {[%clk 0:02:36.1]} 9... Nxf6 {[%clk 0:02:21]}
10. Ne5 {[%clk 0:02:34.1]} 10... O-O {[%clk 0:02:19]} 11. f4 {[%clk 0:02:27.6]}
11... c5 {[%clk 0:02:18.5]} 12. e3 {[%clk 0:02:23.6]} 12... Qb6 {[%clk
0:02:17.7]} 13. Qb3 {[%clk 0:02:20.6]} 13... Rac8 {[%clk 0:02:14.1]} 14. Qxb6
{[%clk 0:02:16.8]} 14... axb6 {[%clk 0:02:13.6]} 15. g4 {[%clk 0:01:49.1]} 15...
Bh7 {[%clk 0:02:10.4]} 16. g5 {[%clk 0:01:45.1]} 16... hxg5 {[%clk 0:02:04.5]}
17. fxg5 {[%clk 0:01:46]} 17... Nh5 {[%clk 0:02:02]} 18. Bf3 {[%clk 0:00:54.5]}
18... Bxg5 {[%clk 0:01:56.1]} 19. Bxh5 {[%clk 0:00:52.6]} 19... Bxe3+ {[%clk
0:01:55.9]} 20. Kg2 {[%clk 0:00:50.8]} 20... Bxd2 {[%clk 0:01:52.3]} 21. Bxf7+
{[%clk 0:00:49.9]} 21... Kh8 {[%clk 0:01:52.7]} 22. Bxe6 {[%clk 0:00:43.1]}
22... Be4+ {[%clk 0:01:51.8]} 23. Kg3 {[%clk 0:00:36]} 23... Rce8 {[%clk
0:01:50.7]} 24. Bf7 {[%clk 0:00:12.2]} 24... Rc8 {[%clk 0:01:36.6]} 25. Bg6
{[%clk 0:00:12]} 25... Rf6 {[%clk 0:01:26]} 26. Nf7+ {[%clk 0:00:10.3]} 26...
Kg8 {[%clk 0:01:25.1]} 27. Bxe4 {[%clk 0:00:10.9]} 27... dxe4 {[%clk 0:01:23.5]}
28. Rxf6 {[%clk 0:00:11.5]} 28... gxf6 {[%clk 0:01:23.6]} 29. Nd6 {[%clk
0:00:12]} 29... Rc6 {[%clk 0:01:14]} 30. Nxe4 {[%clk 0:00:12.9]} 30... Bh6
{[%clk 0:01:13.8]} 31. d5 {[%clk 0:00:12.2]} 31... Rc8 {[%clk 0:01:12.7]} 32.
Nxf6+ {[%clk 0:00:13.1]} 32... Kf7 {[%clk 0:01:13]} 33. Ng4 {[%clk 0:00:14]}
33... Bg7 {[%clk 0:01:12.6]} 34. Rf1+ {[%clk 0:00:14.9]} 34... Ke7 {[%clk
0:01:12.8]} 35. d6+ {[%clk 0:00:14.7]} 35... Kxd6 {[%clk 0:01:12.1]} 36. h4
{[%clk 0:00:15.6]} 36... b5 {[%clk 0:01:07.9]} 37. Rd1+ {[%clk 0:00:16.5]} 37...
Ke6 {[%clk 0:01:06.6]} 38. h5 {[%clk 0:00:17.4]} 38... b4 {[%clk 0:01:06.6]} 39.
h6 {[%clk 0:00:17.4]} 39... Bh8 {[%clk 0:01:06.8]} 40. Rc1 {[%clk 0:00:17]}
40... Ra8 {[%clk 0:01:06.1]} 41. Re1+ {[%clk 0:00:16.9]} 41... Kf7 {[%clk
0:01:04.1]} 42. cxb4 {[%clk 0:00:17.8]} 42... cxb4 {[%clk 0:01:02.5]} 43. a3
{[%clk 0:00:18.7]} 43... bxa3 {[%clk 0:01:02.4]} 44. bxa3 {[%clk 0:00:19.6]}
44... Rxa3+ {[%clk 0:01:03]} 45. Re3 {[%clk 0:00:19.1]} 45... Ra4 {[%clk
0:00:59]} 46. Rf3+ {[%clk 0:00:19.5]} 46... Kg6 {[%clk 0:00:58.4]} 47. Rb3
{[%clk 0:00:19.2]} 47... Ra7 {[%clk 0:00:42.5]} 48. Rb6+ {[%clk 0:00:19.1]}
48... Kf5 {[%clk 0:00:41.6]} 49. Rb5+ {[%clk 0:00:18.4]} 49... Kg6 {[%clk
0:00:40.7]} 50. Rb6+ {[%clk 0:00:18.1]} 50... Kg5 {[%clk 0:00:41.1]} 51. Rb5+
{[%clk 0:00:18.3]} 51... Kg6 {[%clk 0:00:41.5]} 52. Kh4 {[%clk 0:00:18.6]} 52...
Bf6+ {[%clk 0:00:37.7]} 53. Nxf6 {[%clk 0:00:18]} 53... Kxf6 {[%clk 0:00:38.6]}
54. Rb6+ {[%clk 0:00:18.2]} 54... Kf7 {[%clk 0:00:38.7]} 55. h7 {[%clk
0:00:15.3]} 55... Kg7 {[%clk 0:00:38.4]} 56. Kg5 {[%clk 0:00:15.3]} 56... Kxh7
{[%clk 0:00:37.7]} 57. Kf6 {[%clk 0:00:16]} 57... Kh6 {[%clk 0:00:25.2]} 58.
Ke7+ {[%clk 0:00:14.2]} 58... Kg5 {[%clk 0:00:25.6]} 59. Kd7 {[%clk 0:00:14.6]}
59... Kf5 {[%clk 0:00:25.2]} 60. Kc7 {[%clk 0:00:15.3]} 60... Ke5 {[%clk
0:00:25.3]} 61. Kb8 {[%clk 0:00:16.1]} 61... Ra6 {[%clk 0:00:24.7]} 62. Kxb7
{[%clk 0:00:17]} 62... Rxb6+ {[%clk 0:00:24.7]} 63. Kxb6 {[%clk 0:00:17.9]}
1/2-1/2

[Event "*** SCC Grand Prix: Titled Tuesday Blitz"]
[Site "Chess.com"]
[Date "2020.07.21"]
[Round "1"]
[White "sewin16"]
[Black "praveenb2002"]
[Result "0-1"]
[WhiteElo "2385"]
[BlackElo "2757"]
[TimeControl "180+1"]
[EndTime "10:08:00 PDT"]
[Termination "praveenb2002 won by checkmate"]

1. e4 {[%clk 0:03:00.9]} 1... c5 {[%clk 0:02:48.6]} 2. Nf3 {[%clk 0:03:00]} 2...
Nc6 {[%clk 0:02:48.6]} 3. Bb5 {[%clk 0:02:58.3]} 3... g6 {[%clk 0:02:42.8]} 4.
O-O {[%clk 0:02:57.6]} 4... Bg7 {[%clk 0:02:42.7]} 5. Bxc6 {[%clk 0:02:57.2]}
5... dxc6 {[%clk 0:02:42.3]} 6. h3 {[%clk 0:02:56.7]} 6... Nf6 {[%clk 0:02:42]}
7. d3 {[%clk 0:02:56.5]} 7... O-O {[%clk 0:02:40.2]} 8. Qe2 {[%clk 0:02:56]}
8... Ne8 {[%clk 0:02:39.2]} 9. a3 {[%clk 0:02:53.5]} 9... Nc7 {[%clk 0:02:39.5]}
10. Nbd2 {[%clk 0:02:45.9]} 10... Ne6 {[%clk 0:02:34.5]} 11. Nc4 {[%clk
0:02:44.9]} 11... b5 {[%clk 0:02:30]} 12. Ncd2 {[%clk 0:02:14.3]} 12... a5
{[%clk 0:02:29.9]} 13. a4 {[%clk 0:02:12.9]} 13... Ba6 {[%clk 0:02:19]} 14. Rd1
{[%clk 0:02:11.6]} 14... c4 {[%clk 0:02:11.3]} 15. dxc4 {[%clk 0:02:07.4]} 15...
bxc4 {[%clk 0:02:11.5]} 16. c3 {[%clk 0:01:47.6]} 16... Nf4 {[%clk 0:02:04.1]}
17. Qf1 {[%clk 0:01:43.5]} 17... Nd3 {[%clk 0:02:01.8]} 18. Ne1 {[%clk
0:01:39.8]} 18... Nc5 {[%clk 0:01:53]} 19. Qe2 {[%clk 0:01:34.6]} 19... Qb6
{[%clk 0:01:35.5]} 20. Nc2 {[%clk 0:01:21.4]} 20... Nd3 {[%clk 0:01:29.1]} 21.
Ne3 {[%clk 0:01:17.5]} 21... Qc5 {[%clk 0:01:08.5]} 22. Nf3 {[%clk 0:01:07.8]}
22... Rfd8 {[%clk 0:01:05.7]} 23. Ng4 {[%clk 0:00:55.9]} 23... h5 {[%clk
0:00:59]} 24. Be3 {[%clk 0:00:54.8]} 24... Qd6 {[%clk 0:00:52.4]} 25. Ngh2
{[%clk 0:00:51.2]} 25... Qe6 {[%clk 0:00:51.4]} 26. Bd4 {[%clk 0:00:49.9]} 26...
f6 {[%clk 0:00:45]} 27. Nf1 {[%clk 0:00:49.2]} 27... c5 {[%clk 0:00:44.5]} 28.
Be3 {[%clk 0:00:43.2]} 28... Qxe4 {[%clk 0:00:44.7]} 29. Ng3 {[%clk 0:00:42.8]}
29... Qb7 {[%clk 0:00:42.6]} 30. Nh4 {[%clk 0:00:40]} 30... Kf7 {[%clk
0:00:37.6]} 31. Nxg6 {[%clk 0:00:39.2]} 31... Qd5 {[%clk 0:00:25.1]} 32. Nf4
{[%clk 0:00:35.7]} 32... Qe5 {[%clk 0:00:17.4]} 33. Nfxh5 {[%clk 0:00:27.8]}
33... Rg8 {[%clk 0:00:14.9]} 34. Qg4 {[%clk 0:00:17.5]} 34... Bh6 {[%clk
0:00:10]} 35. Qf5 {[%clk 0:00:16.7]} 35... Bxe3 {[%clk 0:00:09.3]} 36. Qh7+
{[%clk 0:00:13.2]} 36... Ke6 {[%clk 0:00:09.6]} 37. fxe3 {[%clk 0:00:12.1]}
37... Rh8 {[%clk 0:00:08.5]} 38. Qg6 {[%clk 0:00:10.2]} 38... Rag8 {[%clk
0:00:07.3]} 39. Ng7+ {[%clk 0:00:10]} 39... Kd7 {[%clk 0:00:07.8]} 40. N3f5
{[%clk 0:00:09.2]} 40... Bb7 {[%clk 0:00:05.3]} 41. Qf7 {[%clk 0:00:08.1]} 41...
Qe4 {[%clk 0:00:04.6]} 42. Rd2 {[%clk 0:00:07.4]} 42... Rh7 {[%clk 0:00:03.6]}
43. Rf1 {[%clk 0:00:06.7]} 43... Rhxg7 {[%clk 0:00:03.5]} 44. Nxg7 {[%clk
0:00:06.2]} 44... Qxe3+ {[%clk 0:00:04.1]} 45. Rdf2 {[%clk 0:00:05.5]} 45... Rh8
{[%clk 0:00:03.8]} 46. Nf5 {[%clk 0:00:04.2]} 46... Qe5 {[%clk 0:00:03.1]} 47.
Ng7 {[%clk 0:00:03.6]} 47... Rh7 {[%clk 0:00:02.2]} 48. Rxf6 {[%clk 0:00:03.4]}
48... Qe3+ {[%clk 0:00:01.9]} 49. Kh1 {[%clk 0:00:02.9]} 49... Rxh3# {[%clk
0:00:02.5]} 0-1

[Event "*** SCC Grand Prix: Titled Tuesday Blitz"]
[Site "Chess.com"]
[Date "2020.07.21"]
[Round "1"]
[White "PowerThinking2650"]
[Black "krzyzan94"]
[Result "1-0"]
[WhiteElo "2341"]
[BlackElo "2647"]
[TimeControl "180+1"]
[EndTime "10:08:00 PDT"]
[Termination "PowerThinking2650 won on time"]

1. e4 {[%clk 0:02:58.6]} 1... c5 {[%clk 0:02:57.6]} 2. Nf3 {[%clk 0:02:53.7]}
2... d6 {[%clk 0:02:57.5]} 3. d4 {[%clk 0:02:53.8]} 3... cxd4 {[%clk 0:02:58.4]}
4. Nxd4 {[%clk 0:02:54.4]} 4... Nf6 {[%clk 0:02:58.9]} 5. Nc3 {[%clk 0:02:55]}
5... a6 {[%clk 0:02:57.7]} 6. Be3 {[%clk 0:02:53.1]} 6... e5 {[%clk 0:02:57.3]}
7. Nb3 {[%clk 0:02:51.9]} 7... Be7 {[%clk 0:02:57.2]} 8. f3 {[%clk 0:02:50.3]}
8... O-O {[%clk 0:02:56.2]} 9. Qd2 {[%clk 0:02:49.6]} 9... Be6 {[%clk 0:02:56]}
10. O-O-O {[%clk 0:02:45.6]} 10... a5 {[%clk 0:02:55.6]} 11. Bb5 {[%clk
0:02:40]} 11... Na6 {[%clk 0:02:52.8]} 12. a4 {[%clk 0:02:30.1]} 12... Nb4
{[%clk 0:02:51.8]} 13. Kb1 {[%clk 0:02:22.9]} 13... d5 {[%clk 0:02:49]} 14. exd5
{[%clk 0:02:13.7]} 14... Nfxd5 {[%clk 0:02:47.5]} 15. Nxd5 {[%clk 0:02:04.6]}
15... Nxd5 {[%clk 0:02:44.6]} 16. Qe2 {[%clk 0:01:35.5]} 16... Qc7 {[%clk
0:02:39.7]} 17. Bc1 {[%clk 0:01:20.6]} 17... Rac8 {[%clk 0:02:36.2]} 18. Rhe1
{[%clk 0:01:04.3]} 18... Rfd8 {[%clk 0:02:19.3]} 19. Na1 {[%clk 0:00:37]} 19...
Bb4 {[%clk 0:02:11.1]} 20. Bd2 {[%clk 0:00:28.5]} 20... Bf5 {[%clk 0:01:56.5]}
21. Rc1 {[%clk 0:00:25.2]} 21... Bxd2 {[%clk 0:01:40.7]} 22. Qxd2 {[%clk
0:00:25.1]} 22... Nb4 {[%clk 0:01:34.6]} 23. Qe2 {[%clk 0:00:23.9]} 23... Rd5
{[%clk 0:01:15.4]} 24. g4 {[%clk 0:00:22.7]} 24... Bg6 {[%clk 0:01:13.8]} 25. f4
{[%clk 0:00:20.5]} 25... f6 {[%clk 0:00:48.8]} 26. f5 {[%clk 0:00:20.5]} 26...
Bf7 {[%clk 0:00:48.5]} 27. b3 {[%clk 0:00:20.8]} 27... Rc5 {[%clk 0:00:44]} 28.
c4 {[%clk 0:00:18.3]} 28... Nc6 {[%clk 0:00:25.8]} 29. Nc2 {[%clk 0:00:17.4]}
29... Rd8 {[%clk 0:00:21.7]} 30. Rcd1 {[%clk 0:00:17.5]} 30... Nd4 {[%clk
0:00:20.5]} 31. Nxd4 {[%clk 0:00:17.3]} 31... exd4 {[%clk 0:00:20.8]} 32. Rd3
{[%clk 0:00:16.2]} 32... Re5 {[%clk 0:00:19.3]} 33. Qd2 {[%clk 0:00:15.9]} 33...
Rxe1+ {[%clk 0:00:16.7]} 34. Qxe1 {[%clk 0:00:15.7]} 34... Qe5 {[%clk
0:00:17.3]} 35. Qd2 {[%clk 0:00:13.9]} 35... h5 {[%clk 0:00:14.2]} 36. h3 {[%clk
0:00:13.3]} 36... hxg4 {[%clk 0:00:13.4]} 37. hxg4 {[%clk 0:00:14.2]} 37... g6
{[%clk 0:00:10.5]} 38. Kb2 {[%clk 0:00:12.9]} 38... gxf5 {[%clk 0:00:09.2]} 39.
gxf5 {[%clk 0:00:13.8]} 39... Qxf5 {[%clk 0:00:08.2]} 40. Rxd4 {[%clk 0:00:14]}
40... Qe5 {[%clk 0:00:07.4]} 41. Kc3 {[%clk 0:00:14.2]} 41... Rxd4 {[%clk
0:00:03.7]} 42. Qxd4 {[%clk 0:00:14.3]} 42... Kg7 {[%clk 0:00:03.1]} 43. Qxe5
{[%clk 0:00:13.1]} 43... fxe5 {[%clk 0:00:04]} 44. c5 {[%clk 0:00:13.2]} 44...
Kf6 {[%clk 0:00:04.5]} 45. c6 {[%clk 0:00:13]} 45... bxc6 {[%clk 0:00:05.1]} 46.
Bxc6 {[%clk 0:00:13.9]} 46... Kf5 {[%clk 0:00:05.4]} 47. b4 {[%clk 0:00:14.2]}
47... axb4+ {[%clk 0:00:03.5]} 48. Kxb4 {[%clk 0:00:15.1]} 48... e4 {[%clk
0:00:03.4]} 49. a5 {[%clk 0:00:13.7]} 49... e3 {[%clk 0:00:03.3]} 50. Kc3 {[%clk
0:00:13.3]} 50... Kf4 {[%clk 0:00:02.1]} 51. a6 {[%clk 0:00:12.8]} 51... e2
{[%clk 0:00:01.9]} 52. Kd2 {[%clk 0:00:12.6]} 52... Kg3 {[%clk 0:00:02]} 53. Ke1
{[%clk 0:00:12.3]} 1-0